fUSD/lending_fUSD_20260107
["ID","MTS","AMOUNT","RATE_DAILY","PERIOD"]
[400748718,1767811840258,-485.0,0.00015511,2]
[400748719,1767811840268,-200.0,0.00015524,2]
[400748722,1767811840277,-151.0,0.00015533,2]
[400748724,1767811840287,-151.0,0.00015533,2]
[400748726,1767811840296,-500.0,0.00015537,2]
[400748727,1767811840306,-1508.93,0.00015537,2]
[400748729,1767811840316,-151.0,0.00015541,2]
[400748731,1767811840325,-151.0,0.00015541,2]
[400748733,1767811840334,-151.0,0.00015541,2]
[400748735,1767811840344,-151.0,0.00015541,2]
[400748737,1767811840353,-300.0,0.00015542,2]
[400748739,1767811840362,-151.0,0.00015544,2]
[400748741,1767811840372,-151.0,0.00015544,2]
[400748743,1767811840381,-485.0,0.00015566,2]
[400748745,1767811840391,-11835.36861976,0.00015581,2]
[400748747,1767811840401,-200.0,0.00015608,2]
[400748749,1767811840411,-500.0,0.00015619,2]
[400748751,1767811840420,-461.49248906,0.00015619,2]
[400748754,1767811840430,-500.0,0.00015619,2]
[400748755,1767811840439,-508.99338834,0.00015619,2]
[400748757,1767811840448,-564.80231149,0.00015621,2]
[400748759,1767811840457,-166.49390426,0.00015621,2]
[400748761,1767811840467,-1000.0,0.00015621,2]
[400748763,1767811840476,-1002.16378022,0.00015621,2]
[400748765,1767811840486,-1000.0,0.00015621,2]
[400748767,1767811840495,-1000.0,0.00015621,2]
[400748770,1767811840505,-1000.0,0.00015621,2]
[400748772,1767811840514,-1000.0,0.00015621,2]
[400748774,1767811840524,-1000.0,0.00015621,2]
[400748776,1767811840533,-1000.0,0.00015621,2]
[400748777,1767811840542,-519.44971303,0.00015621,2]
[400748780,1767811840551,-311.64161933,0.00015621,2]
[400748782,1767811840561,-1000.0,0.00015621,2]
[400748783,1767811840572,-1000.0,0.00015621,2]
[400748785,1767811840582,-1000.0,0.00015621,2]
[400748787,1767811840591,-1000.0,0.00015621,2]
[400748789,1767811840600,-1000.0,0.00015621,2]
[400748791,1767811840610,-1000.0,0.00015621,2]
[400748793,1767811840620,-1000.0,0.00015621,2]
[400748795,1767811840630,-1000.0,0.00015621,2]
[400748798,1767811840639,-1000.0,0.00015621,2]
[400748799,1767811840649,-485.0,0.00015621,2]
[400748801,1767811840658,-407.28,0.0001565,2]
[400748803,1767811840668,-300.0,0.00015664,2]
[400748806,1767811840678,-419.33594592,0.00015671,2]
[400748807,1767811840687,-485.0,0.00015676,2]
[400748809,1767811840696,-1236.80026539,0.00015684,2]
[400748811,1767811840706,-166.66,0.00015702,2]
[400748813,1767811840715,-485.0,0.0001573,2]
[400748815,1767811840724,-300.0,0.00015746,2]
[400748817,1767811840733,-485.0,0.00015785,2]
[400748819,1767811840742,-300.0,0.00015799,2]
[400748822,1767811840752,-500.0,0.00015811,2]
[400748823,1767811840761,-1508.93,0.00015811,2]
[400748826,1767811840771,-485.0,0.0001584,2]
[400748828,1767811840780,-300.0,0.00015842,2]
[400748830,1767811840789,-300.0,0.00015884,2]
[400748832,1767811840798,-368.0,0.0001589,2]
[400748834,1767811840807,-500.0,0.0001589,2]
[400748836,1767811840817,-500.0,0.0001589,2]
[400748838,1767811840827,-485.0,0.00015895,2]
[400748839,1767811840836,-20300.01999162,0.000159,2]
[400748841,1767811840845,-11835.36861976,0.00015912,2]
[400748843,1767811840854,-1377.82277896,0.00015912,2]
[400748846,1767811840863,-2452.03788125,0.00015936,2]
[400748847,1767811840872,-485.0,0.00015949,2]
[400748849,1767811840882,-500.0,0.00015999,2]
[400748851,1767811840891,-492.24922462,0.00016004,2]
[400748853,1767811840900,-255.0,0.00016036,2]
[400748855,1767811840909,-522.46913605,0.00016085,2]
[400748857,1767811840919,-1508.93,0.00016085,2]
[400748860,1767811840929,-9999.99,0.00016116,2]
[400748862,1767811840938,-1236.80026539,0.00016127,2]
[400748864,1767811840947,-300.0,0.00016143,2]
[400748866,1767811840956,-300.0,0.00016152,2]
[400748868,1767811840965,-300.0,0.00016153,2]
[400748870,1767811840975,-300.0,0.00016156,2]
[400748872,1767811840983,-1500.0,0.00016168,2]
[400748874,1767811840993,-556.0741427,0.00016168,2]
[400748876,1767811841002,-1500.0,0.00016168,2]
[400748878,1767811841011,-1500.0,0.00016168,2]
[400748880,1767811841020,-1500.0,0.00016168,2]
[400748882,1767811841030,-1500.0,0.00016168,2]
[400748883,1767811841040,-385.90036431,0.00016168,2]
[400748885,1767811841049,-1500.0,0.00016168,2]
[400748887,1767811841058,-1009.86932533,0.00016168,2]
[400748889,1767811841067,-1500.0,0.00016168,2]
[400748891,1767811841076,-413.08976684,0.00016168,2]
[400748893,1767811841085,-1500.0,0.00016168,2]
[400748895,1767811841095,-1500.0,0.00016168,2]
[400748897,1767811841108,-1128.37348131,0.00016168,2]
[400748899,1767811841117,-1000.73448024,0.00016168,2]
[400748901,1767811841126,-300.0,0.00016191,2]
[400748903,1767811841135,-500.0,0.00016199,2]
[400748905,1767811841146,-500.0,0.00016199,2]
[400748906,1767811841155,-166.66,0.00016203,2]
[400748907,1767811841164,-300.0,0.00016218,2]
[400748908,1767811841174,-11835.36861976,0.00016243,2]
[400748909,1767811841183,-300.0,0.00016256,2]
[400748910,1767811841192,-420.0,0.00016296,2]
[400748911,1767811841200,-1508.93,0.00016359,2]
[400748912,1767811841209,-300.0,0.00016363,2]
[400748913,1767811841218,-250.0,0.00016377,2]
[400748914,1767811841227,-195.0,0.00016377,2]
[400748915,1767811841236,-191.37810671,0.00016377,2]
[400748916,1767811841245,-190.10244326,0.00016377,2]
[400748917,1767811841254,-2500.0,0.00016377,2]
[400748918,1767811841263,-164.24832176,0.00016377,2]
[400748919,1767811841271,-1680.0,0.00016377,2]
[400748920,1767811841280,-300.0,0.00016385,2]
[400748921,1767811841289,-300.0,0.00016392,2]
[400748922,1767811841298,-193.0,0.00016404,2]
[400748923,1767811841307,-2500.0,0.00016404,2]
[400748924,1767811841315,-250.0,0.00016404,2]
[400748925,1767811841324,-250.0,0.00016407,2]
[400748926,1767811841333,-195.0,0.00016407,2]
[400748927,1767811841343,-5000.0,0.00016407,2]
[400748928,1767811841352,-300.0,0.00016407,2]
[400748929,1767811841360,-300.0,0.00016407,2]
[400748930,1767811841369,-152.10889041,0.00016407,2]
[400748931,1767811841379,-1377.82277896,0.00016409,2]
[400748932,1767811841388,-1038.49,0.00016422,2]
[400748933,1767811841397,-322.6107,0.00016434,2]
[400748934,1767811841406,-151.55763012,0.00016434,2]
[400748935,1767811841415,-1500.0,0.00016434,2]
[400748936,1767811841426,-574.12855637,0.00016434,2]
[400748937,1767811841435,-1500.0,0.00016434,2]
[400748938,1767811841444,-500.0,0.00016434,2]
[400748939,1767811841453,-500.0,0.00016434,2]
[400748940,1767811841464,-1500.0,0.00016434,2]
[400748941,1767811841473,-500.0,0.00016434,2]
[400748942,1767811841482,-500.0,0.00016434,2]
[400748943,1767811841491,-1500.0,0.00016434,2]
[400748944,1767811841500,-500.0,0.00016434,2]
[400748945,1767811841509,-500.0,0.00016434,2]
[400748946,1767811841518,-1500.0,0.00016434,2]
[400748947,1767811841527,-500.0,0.00016434,2]
[400748948,1767811841537,-500.0,0.00016434,2]
[400748949,1767811841546,-500.0,0.00016434,2]
[400748950,1767811841555,-500.0,0.00016434,2]
[400748951,1767811841564,-1500.0,0.00016434,2]
[400748953,1767811841573,-500.0,0.00016434,2]
[400748954,1767811841583,-500.0,0.00016434,2]
[400748955,1767811841592,-1500.0,0.00016434,2]
[400748956,1767811841601,-500.0,0.00016434,2]
[400748957,1767811841610,-500.0,0.00016434,2]
[400748958,1767811841619,-1500.0,0.00016434,2]
[400748959,1767811841629,-500.0,0.00016434,2]
[400748960,1767811841638,-500.0,0.00016434,2]
[400748961,1767811841647,-1500.0,0.00016434,2]
[400748962,1767811841656,-578.20924308,0.00016434,2]
[400748963,1767811841666,-500.0,0.00016434,2]
[400748964,1767811841675,-500.0,0.00016434,2]
[400748965,1767811841684,-1500.0,0.00016434,2]
[400748966,1767811841693,-500.0,0.00016434,2]
[400748967,1767811841702,-500.0,0.00016434,2]
[400748968,1767811841711,-448.72451731,0.00016434,2]
[400748969,1767811841721,-1500.0,0.00016434,2]
[400748970,1767811841730,-500.0,0.00016434,2]
[400748971,1767811841739,-500.0,0.00016434,2]
[400748972,1767811841748,-500.0,0.00016434,2]
[400748973,1767811841757,-500.0,0.00016434,2]
[400748974,1767811841766,-200.0,0.00016434,2]
[400748975,1767811841775,-620.0,0.00016434,2]
[400748976,1767811841784,-500.0,0.00016434,2]
[400748977,1767811841793,-207.4,0.00016434,2]
[400748978,1767811841802,-500.0,0.00016434,2]
[400748979,1767811841811,-215.0738,0.00016434,2]
[400748980,1767811841820,-500.0,0.00016434,2]
[400748981,1767811841829,-223.0315306,0.00016434,2]
[400748982,1767811841838,-500.0,0.00016434,2]
[400748983,1767811841847,-231.28369723,0.00016434,2]
[400748984,1767811841856,-2000.0,0.00016434,2]
[400748985,1767811841865,-500.0,0.00016434,2]
[400748986,1767811841874,-239.84119403,0.00016434,2]
[400748987,1767811841884,-633.50600033,0.00016434,2]
[400748988,1767811841893,-500.0,0.00016434,2]
[400748989,1767811841903,-248.71531821,0.00016434,2]
[400748990,1767811841912,-500.0,0.00016434,2]
[400748991,1767811841921,-257.91778498,0.00016434,2]
[400748992,1767811841930,-500.0,0.00016434,2]
[400748993,1767811841939,-267.46074303,0.00016434,2]
[400748994,1767811841949,-500.0,0.00016434,2]
[400748995,1767811841958,-277.35679052,0.00016434,2]
[400748996,1767811841967,-250.0,0.00016434,2]
[400748997,1767811841976,-250.0,0.00016434,2]
[400748998,1767811841986,-500.0,0.00016437,2]
[400748999,1767811841997,-500.0,0.00016437,2]
[400749000,1767811842009,-500.0,0.00016437,2]
[400749001,1767811842018,-500.0,0.00016438,2]
[400749002,1767811842027,-502.50130614,0.00016438,2]
[400749003,1767811842037,-502.50130614,0.00016438,2]
[400749004,1767811842046,-502.50130614,0.00016438,2]
[400749005,1767811842055,-502.50130614,0.00016438,2]
[400749006,1767811842064,-502.50130614,0.00016438,2]
[400749007,1767811842073,-502.50130614,0.00016438,2]
[400749008,1767811842083,-502.50130614,0.00016438,2]
[400749009,1767811842092,-502.50130614,0.00016438,2]
[400749010,1767811842105,-502.50130614,0.00016438,2]
[400749011,1767811842115,-502.50130614,0.00016438,2]
[400749012,1767811842124,-502.50130614,0.00016438,2]
[400749013,1767811842134,-502.50130614,0.00016438,2]
[400749014,1767811842144,-502.50130614,0.00016438,2]
[400749015,1767811842153,-502.50130614,0.00016438,2]
[400749016,1767811842163,-502.50130614,0.00016438,2]
[400749017,1767811842172,-502.50130614,0.00016438,2]
[400749018,1767811842182,-502.50130614,0.00016438,2]
[400749019,1767811842192,-502.50130614,0.00016438,2]
[400749020,1767811842201,-502.50130614,0.00016438,2]
[400749021,1767811842211,-502.50130614,0.00016438,2]
[400749022,1767811842221,-502.50130614,0.00016438,2]
[400749023,1767811842230,-502.50130614,0.00016438,2]
[400749024,1767811842239,-502.50130614,0.00016438,2]
[400749025,1767811842249,-502.50130614,0.00016438,2]
[400749026,1767811842258,-502.50130614,0.00016438,2]
[400749027,1767811842269,-502.50130614,0.00016438,2]
[400749028,1767811842278,-502.50130614,0.00016438,2]
[400749029,1767811842288,-502.50130614,0.00016438,2]
[400749030,1767811842298,-502.50130614,0.00016438,2]
[400749031,1767811842308,-502.50130614,0.00016438,2]
[400749032,1767811842317,-502.50130614,0.00016438,2]
[400749033,1767811842327,-502.50130614,0.00016438,2]
[400749034,1767811842337,-502.50130614,0.00016438,2]
[400749035,1767811842347,-502.50130614,0.00016438,2]
[400749036,1767811842357,-502.50130614,0.00016438,2]
[400749037,1767811842367,-502.50130614,0.00016438,2]
[400749038,1767811842377,-502.50130614,0.00016438,2]
[400749039,1767811842387,-502.50130614,0.00016438,2]
[400749040,1767811842397,-502.50130614,0.00016438,2]
[400749041,1767811842408,-502.50130614,0.00016438,2]
[400749042,1767811842417,-502.50130614,0.00016438,2]
[400749043,1767811842427,-502.50130614,0.00016438,2]
[400749044,1767811842437,-502.50130614,0.00016438,2]
[400749045,1767811842447,-502.50130614,0.00016438,2]
[400749046,1767811842456,-502.50130614,0.00016438,2]
[400749047,1767811842466,-502.50130614,0.00016438,2]
[400749048,1767811842475,-502.50130614,0.00016438,2]
[400749049,1767811842485,-502.50130614,0.00016438,2]
[400749050,1767811842494,-502.50130614,0.00016438,2]
[400749051,1767811842504,-502.50130614,0.00016438,2]
[400749052,1767811842513,-502.50130614,0.00016438,2]
[400749053,1767811842523,-502.50130614,0.00016438,2]
[400749054,1767811842534,-502.50130614,0.00016438,2]
[400749055,1767811842543,-502.50130614,0.00016438,2]
[400749056,1767811842553,-502.50130614,0.00016438,2]
[400749057,1767811842562,-502.50130614,0.00016438,2]
[400749058,1767811842571,-502.50130614,0.00016438,2]
[400749059,1767811842579,-502.50130614,0.00016438,2]
[400749060,1767811842589,-502.50130614,0.00016438,2]
[400749061,1767811842598,-502.50130614,0.00016438,2]
[400749062,1767811842607,-502.50130614,0.00016438,2]
[400749063,1767811842616,-502.50130614,0.00016438,2]
[400749064,1767811842625,-502.50130614,0.00016438,2]
[400749065,1767811842635,-502.50130614,0.00016438,2]
[400749066,1767811842644,-502.50130614,0.00016438,2]
[400749067,1767811842654,-502.50130614,0.00016438,2]
[400749068,1767811842663,-502.50130614,0.00016438,2]
[400749069,1767811842673,-502.50130614,0.00016438,2]
[400749070,1767811842683,-502.50130614,0.00016438,2]
[400749071,1767811842692,-502.50130614,0.00016438,2]
[400749072,1767811842701,-502.50130614,0.00016438,2]
[400749073,1767811842711,-502.50130614,0.00016438,2]
[400749074,1767811842720,-502.50130614,0.00016438,2]
[400749075,1767811842729,-9668.31460325,0.00016438,2]
[400749076,1767811842738,-9668.31460325,0.00016438,2]
[400749077,1767811842747,-9668.31460325,0.00016438,2]
[400749078,1767811842756,-9668.31460325,0.00016438,2]
[400749079,1767811842765,-9668.31460325,0.00016438,2]
[400749080,1767811842774,-9668.31460325,0.00016438,2]
[400749081,1767811842783,-9668.31460325,0.00016438,2]
[400749082,1767811842794,-9668.31460325,0.00016438,2]
[400749083,1767811842803,-9668.31460325,0.00016438,2]
[400749084,1767811842812,-9668.31460325,0.00016438,2]
[400749085,1767811842821,-9668.31460325,0.00016438,2]
[400749086,1767811842831,-9668.31460325,0.00016438,2]
[400749087,1767811842841,-9668.31460325,0.00016438,2]
[400749088,1767811842850,-9668.31460325,0.00016438,2]
[400749089,1767811842859,-9668.31460325,0.00016438,2]
[400749090,1767811842868,-9668.31460325,0.00016438,2]
[400749091,1767811842877,-9668.31460323,0.00016438,2]
[400749092,1767811842886,-800.0,0.00016438,2]
[400749093,1767811842895,-300.0,0.00016443,2]
[400749094,1767811842904,-300.0,0.00016457,2]
[400749095,1767811842913,-240.62620329,0.00016458,2]
[400749096,1767811842923,-300.0,0.00016489,2]
[400749097,1767811842932,-500.0,0.00016493,2]
[400749098,1767811842943,-300.0,0.00016521,2]
[400749099,1767811842952,-500.0,0.00016548,2]
[400749100,1767811842962,-300.0,0.00016556,2]
[400749101,1767811842977,-1236.80026539,0.00016571,2]
[400749102,1767811842992,-11835.36861976,0.00016575,2]
[400749103,1767811843003,-300.0,0.00016597,2]
[400749104,1767811843013,-188.33554362,0.00016602,2]
[400749105,1767811843022,-1508.93,0.00016633,2]
[400749106,1767811843032,-150.0,0.00016639,2]
[400749107,1767811843041,-578.87202896,0.00016643,2]
[400749108,1767811843050,-360.78764565,0.00016643,2]
[400749109,1767811843062,-500.0,0.00016643,2]
[400749110,1767811843082,-500.0,0.00016643,2]
[400749111,1767811843095,-500.0,0.00016643,2]
[400749112,1767811843113,-500.0,0.00016643,2]
[400749113,1767811843122,-500.0,0.00016643,2]
[400749114,1767811843132,-500.0,0.00016643,2]
[400749115,1767811843142,-500.0,0.00016643,2]
[400749116,1767811843152,-628.50709886,0.00016643,2]
[400749117,1767811843161,-500.0,0.00016643,2]
[400749118,1767811843170,-500.0,0.00016643,2]
[400749119,1767811843182,-378.44615396,0.00016643,2]
[400749120,1767811843192,-150.0,0.00016685,2]
[400749121,1767811843201,-300.0,0.00016694,2]
[400749122,1767811843211,-166.66,0.00016705,2]
[400749123,1767811843221,-165.12,0.00016712,2]
[400749125,1767811843230,-2000.0,0.00016716,2]
[400749126,1767811843240,-1112.33615182,0.00016716,2]
[400749127,1767811843250,-2000.0,0.00016716,2]
[400749128,1767811843260,-1408.10299042,0.00016716,2]
[400749129,1767811843270,-2000.0,0.00016716,2]
[400749130,1767811843280,-2000.0,0.00016716,2]
[400749131,1767811843289,-2000.0,0.00016716,2]
[400749132,1767811843298,-2000.0,0.00016716,2]
[400749133,1767811843308,-2000.0,0.00016716,2]
[400749135,1767811843317,-300.0,0.00016718,2]
[400749137,1767811843326,-300.0,0.00016722,2]
[400749138,1767811843335,-181.06,0.0001673,2]
[400749139,1767811843346,-300.0,0.00016744,2]
[400749140,1767811843356,-300.0,0.00016753,2]
[400749141,1767811843367,-300.0,0.00016768,2]
[400749142,1767811843377,-150.0,0.00016772,2]
[400749143,1767811843387,-300.0,0.00016806,2]
[400749144,1767811843397,-300.0,0.0001681,2]
[400749145,1767811843406,-300.0,0.00016818,2]
[400749146,1767811843415,-150.0,0.0001685,2]
[400749147,1767811843425,-300.0,0.00016856,2]
[400749148,1767811843435,-300.0,0.00016863,2]
[400749149,1767811843446,-407.28,0.00016891,2]
[400749150,1767811843456,-300.0,0.00016896,2]
[400749151,1767811843466,-300.0,0.00016899,2]
[400749152,1767811843474,-150.0,0.00016904,2]
[400749153,1767811843485,-11835.36861976,0.00016906,2]
[400749154,1767811843494,-1377.82277896,0.00016906,2]
[400749155,1767811843503,-1508.93,0.00016907,2]
[400749156,1767811843513,-150.0,0.00016908,2]
[400749157,1767811843522,-500.0,0.00016942,2]
[400749158,1767811843532,-300.0,0.00016943,2]
[400749159,1767811843542,-300.0,0.00016957,2]
[400749160,1767811843552,-300.0,0.00016966,2]
[400749161,1767811843561,-300.0,0.0001697,2]
[400749162,1767811843571,-595.37131296,0.00016982,2]
[400749163,1767811843580,-150.0,0.00016983,2]
[400749164,1767811843591,-50734.67,0.00016986,2]
[400749165,1767811843844,-271.4980778,0.00016991,2]
[400749166,1767811843854,-300.0,0.00016999,2]
[400749167,1767811843863,-250.0,0.00017,2]
[400749168,1767811843873,-179.52010608,0.00017,2]
[400749169,1767811843883,-150.0,0.00017013,2]
[400749170,1767811843893,-1236.80026539,0.00017014,2]
[400749171,1767811843902,-300.0,0.00017024,2]
[400749172,1767811843912,-300.0,0.00017037,2]
[400749173,1767811843922,-300.0,0.00017077,2]
[400749174,1767811843931,-787.35487633,0.00017087,2]
[400749175,1767811843940,-634.29540262,0.0001709,2]
[400749176,1767811843950,-300.0,0.00017093,2]
[400749177,1767811843959,-30000.0,0.000171,2]
[400749178,1767811843969,-300.0,0.00017107,2]
[400749179,1767811843979,-254.54,0.0001711,2]
[400749180,1767811843988,-300.0,0.00017119,2]
[400749181,1767811843997,-300.0,0.00017157,2]
[400749182,1767811844007,-1508.93,0.00017181,2]
[400749183,1767811844016,-219635.8248761,0.00017184,2]
[400749184,1767811844026,-300.0,0.00017187,2]
[400749185,1767811844035,-299.888,0.00017191,2]
[400749186,1767811844045,-500.0,0.00017191,2]
[400749187,1767811844054,-503.18143071,0.00017191,2]
[400749188,1767811844063,-847.22084679,0.00017191,2]
[400749189,1767811844073,-150.0,0.00017198,2]
[400749190,1767811844083,-166.66,0.00017207,2]
[400749191,1767811844092,-300.0,0.00017207,2]
[400749192,1767811844105,-300.0,0.00017214,2]
[400749193,1767811844115,-150.0,0.00017224,2]
[400749194,1767811844125,-1613.0,0.00017225,2]
[400749195,1767811844135,-11835.36861976,0.00017237,2]
[400749196,1767811844147,-150.0,0.00017243,2]
[400749197,1767811844161,-433.0,0.00017244,2]
[400749198,1767811844171,-787.35487633,0.0001725,2]
[400749199,1767811844182,-300.0,0.00017251,2]
[400749200,1767811844192,-300.0,0.00017258,2]
[400749201,1767811844202,-300.0,0.0001726,2]
[400749202,1767811844212,-181.06,0.00017264,2]
[400749203,1767811844221,-2500.0,0.00017264,2]
[400749204,1767811844232,-2505.38555235,0.00017264,2]
[400749205,1767811844242,-1000.0,0.00017264,2]
[400749206,1767811844256,-2500.0,0.00017264,2]
[400749207,1767811844266,-2500.0,0.00017264,2]
[400749208,1767811844276,-176.00349903,0.00017264,2]
[400749209,1767811844286,-152.22115376,0.00017264,2]
[400749210,1767811844295,-300.0,0.00017267,2]
[400749211,1767811844305,-300.0,0.00017275,2]
[400749212,1767811844315,-300.0,0.00017286,2]
[400749213,1767811844325,-65487.0,0.000173,2]
[400749214,1767811844335,-151.57655384,0.00017315,2]
[400749215,1767811844344,-300.0,0.00017376,2]
[400749216,1767811844354,-407.28,0.00017382,2]
[400749217,1767811844364,-300.0,0.00017382,2]
[400749218,1767811844373,-1377.82277896,0.00017403,2]
[400749219,1767811844383,-150.0,0.00017406,2]
[400749220,1767811844392,-150.0,0.00017411,2]
[400749221,1767811844402,-787.35487633,0.00017412,2]
[400749222,1767811844412,-300.0,0.00017421,2]
[400749223,1767811844422,-300.0,0.00017442,2]
[400749224,1767811844431,-300.0,0.00017448,2]
[400749225,1767811844441,-300.0,0.00017453,2]
[400749226,1767811844450,-1508.93,0.00017455,2]
[400749227,1767811844460,-1236.80026539,0.00017457,2]
[400749228,1767811844470,-300.0,0.00017486,2]
[400749229,1767811844479,-1613.0,0.00017488,2]
[400749230,1767811844489,-634.2954026,0.00017495,2]
[400749231,1767811844499,-300.0,0.00017499,2]
[400749232,1767811844509,-2000.0,0.000175,2]
[400749233,1767811844520,-300.0,0.00017501,2]
[400749234,1767811844530,-300.0,0.00017509,2]
[400749235,1767811844540,-150.0,0.0001751,2]
[400749236,1767811844549,-300.0,0.00017524,2]
[400749237,1767811844559,-1613.0,0.00017528,2]
[400749238,1767811844568,-617.40005154,0.0001753,2]
[400749239,1767811844578,-1040.82358149,0.00017534,2]
[400749240,1767811844587,-1688.95959214,0.00017542,2]
[400749241,1767811844597,-827.5,0.00017552,2]
[400749242,1767811844607,-300.0,0.00017563,2]
[400749243,1767811844616,-7036.55758202,0.00017569,2]
[400749244,1767811844626,-11835.36861976,0.00017569,2]
[400749245,1767811844635,-1613.0,0.00017574,2]
[400749246,1767811844644,-787.35487633,0.00017575,2]
[400749247,1767811844655,-300.0,0.00017615,2]
[400749248,1767811844664,-603.0,0.00017621,2]
[400749249,1767811844674,-300.0,0.00017636,2]
[400749250,1767811844683,-1038.98423222,0.0001764,2]
[400749251,1767811844693,-1205.83814371,0.0001764,2]
[400749252,1767811844703,-8547.72063637,0.0001764,2]
[400749253,1767811844713,-300.0,0.00017654,2]
[400749254,1767811844723,-300.0,0.0001768,2]
[400749255,1767811844732,-300.0,0.00017691,2]
[400749256,1767811844742,-1000.0,0.000177,2]
[400749257,1767811844751,-5533.0,0.000177,3]
[400749258,1767811844760,-603.0,0.00017706,2]
[400749259,1767811844770,-166.66,0.00017709,2]
[400749260,1767811844780,-1508.93,0.00017729,2]
[400749261,1767811844789,-400.58303632,0.00017734,2]
[400749262,1767811844800,-500.0,0.00017734,2]
[400749263,1767811844811,-787.35487633,0.00017737,2]
[400749264,1767811844821,-500.0,0.0001775,2]
[400749265,1767811844831,-25000.0,0.0001775,3]
[400749266,1767811844840,-300.0,0.00017757,2]
[400749267,1767811844850,-25000.0,0.00017759,3]
[400749268,1767811844859,-25000.0,0.00017768,3]
[400749269,1767811844869,-300.0,0.00017774,2]
[400749270,1767811844880,-25000.0,0.00017777,3]
[400749271,1767811844889,-25000.0,0.00017786,3]
[400749272,1767811844899,-25000.0,0.00017794,3]
[400749273,1767811844909,-300.0,0.00017799,2]
[400749274,1767811844918,-1000.0,0.000178,2]
[400749275,1767811844928,-25000.0,0.00017803,3]
[400749276,1767811844938,-334.5472959,0.00017803,2]
[400749277,1767811844948,-642.94,0.00017803,2]
[400749278,1767811844958,-287.61899177,0.00017803,2]
[400749279,1767811844969,-300.0,0.00017809,2]
[400749280,1767811844979,-25000.0,0.00017812,3]
[400749281,1767811844989,-1000.0,0.00017812,2]
[400749282,1767811844999,-3000.0,0.00017812,2]
[400749283,1767811845009,-3000.0,0.00017812,2]
[400749284,1767811845019,-150.0,0.00017813,2]
[400749285,1767811845028,-181.06,0.00017814,2]
[400749286,1767811845038,-4637.49471,0.0001782,2]
[400749287,1767811845047,-4637.49471,0.0001782,2]
[400749288,1767811845057,-25000.0,0.00017821,3]
[400749289,1767811845066,-300.0,0.00017821,2]
[400749290,1767811845076,-500.0,0.00017829,2]
[400749291,1767811845085,-25000.0,0.0001783,3]
[400749292,1767811845095,-261.94980575,0.0001783,2]
[400749293,1767811845108,-4637.49471,0.0001783,2]
[400749294,1767811845119,-181.06,0.00017831,2]
[400749295,1767811845128,-151.0,0.00017835,2]
[400749296,1767811845138,-254.54,0.00017837,2]
[400749297,1767811845150,-587.0,0.00017837,2]
[400749298,1767811845160,-5270.52083509,0.00017838,3]
[400749300,1767811845723,-19729.47916491,0.00017838,3]
[400749301,1767811845733,-150.0,0.00017843,2]
[400749302,1767811845742,-300.0,0.00017846,2]
[400749303,1767811845752,-25000.0,0.00017847,3]
[400749304,1767811845762,-300.0,0.00017853,2]
[400749305,1767811845772,-200.0,0.00017855,2]
[400749306,1767811845781,-200.0,0.00017856,2]
[400749307,1767811845791,-25000.0,0.00017856,3]
[400749308,1767811845800,-200.0,0.00017856,2]
[400749309,1767811845810,-200.0,0.00017856,2]
[400749310,1767811845819,-4637.49471,0.0001786,2]
[400749311,1767811845829,-25000.0,0.00017865,3]
[400749312,1767811845839,-300.0,0.00017865,2]
[400749313,1767811845848,-300.0,0.00017873,2]
[400749314,1767811845857,-25000.0,0.00017874,3]
[400749315,1767811845960,-300.0,0.00017874,2]